[Event "Nové Hrady - Blesk"]
[Site "Nové Hrady, Czech Republic"]
[Date "2023.08.17"]
[Round "2.7"]
[White "Blazek, Jiri"]
[Black "Sadil, Antonin"]
[Result "0-1"]
[TimeControl "2x3+2s"]
[WhiteFideId "330515"]
[BlackFideId "23735597"]
[WhiteElo "2061"]
[BlackElo "1697"]

1. e4 {[%clk 00:02:59]} {[%emt 00:00:05]} c6 {[%clk 00:03:03]} {[%emt
00:00:01]} 2. d4 {[%clk 00:02:55]} {[%emt 00:00:06]} d5 {[%clk 00:03:04]}
{[%emt 00:00:02]} 3. exd5 {[%clk 00:02:56]} cxd5 {[%clk 00:03:04]} {[%emt
00:00:02]} 4. Bd3 {[%clk 00:02:55]} {[%emt 00:00:03]} Nc6 {[%clk 00:03:04]}
{[%emt 00:00:03]} 5. c3 {[%clk 00:02:50]} {[%emt 00:00:06]} Nf6 {[%clk
00:03:04]} {[%emt 00:00:02]} 6. Bf4 {[%clk 00:02:33]} {[%emt 00:00:19]} e6
{[%clk 00:02:58]} {[%emt 00:00:09]} 7. Ne2 {[%clk 00:02:26]} {[%emt 00:00:08]}
Bd6 {[%clk 00:02:58]} {[%emt 00:00:03]} 8. Bxd6 {[%clk 00:02:22]} {[%emt
00:00:06]} Qxd6 {[%clk 00:02:57]} {[%emt 00:00:03]} 9. f4 {[%clk 00:02:22]} O-O
{[%clk 00:02:43]} {[%emt 00:00:17]} 10. O-O {[%clk 00:02:18]} {[%emt 00:00:06]}
Bd7 {[%clk 00:02:28]} {[%emt 00:00:18]} 11. Nd2 {[%clk 00:02:13]} {[%emt
00:00:06]} Rac8 {[%clk 00:02:24]} {[%emt 00:00:07]} 12. Nf3 {[%clk 00:02:12]}
{[%emt 00:00:03]} Na5 {[%clk 00:02:00]} {[%emt 00:00:25]} 13. Ne5 {[%clk
00:02:07]} {[%emt 00:00:07]} Nc4 {[%clk 00:02:00]} {[%emt 00:00:02]} 14. Nxc4
{[%clk 00:01:24]} {[%emt 00:00:45]} dxc4 {[%clk 00:02:01]} 15. Bc2 {[%clk
00:01:25]} {[%emt 00:00:03]} Bc6 {[%clk 00:01:44]} {[%emt 00:00:19]} 16. Ng3
{[%clk 00:01:21]} {[%emt 00:00:05]} Rfd8 {[%clk 00:01:21]} {[%emt 00:00:26]} 17.
Qe2 {[%clk 00:01:12]} {[%emt 00:00:11]} Bd5 {[%clk 00:01:08]} {[%emt 00:00:15]}
18. f5 {[%clk 00:00:57]} {[%emt 00:00:16]} Re8 {[%clk 00:01:00]} {[%emt
00:00:10]} 19. Nh5 {[%clk 00:00:51]} {[%emt 00:00:09]} exf5 {[%clk 00:00:55]}
{[%emt 00:00:07]} 20. Nxf6+ {[%clk 00:00:50]} {[%emt 00:00:02]} Qxf6 {[%clk
00:00:56]} {[%emt 00:00:02]} 21. Qh5 {[%clk 00:00:42]} {[%emt 00:00:09]} g6
{[%clk 00:00:56]} {[%emt 00:00:03]} 22. Qh3 {[%clk 00:00:39]} {[%emt 00:00:05]}
Be4 {[%clk 00:00:54]} {[%emt 00:00:04]} 23. Bd1 {[%clk 00:00:31]} {[%emt
00:00:09]} Bd3 {[%clk 00:00:48]} {[%emt 00:00:08]} 24. Bf3 {[%clk 00:00:29]}
{[%emt 00:00:05]} Bxf1 {[%clk 00:00:47]} {[%emt 00:00:03]} 25. Rxf1 {[%clk
00:00:28]} {[%emt 00:00:02]} Rc7 {[%clk 00:00:47]} {[%emt 00:00:02]} 26. g4
{[%clk 00:00:26]} {[%emt 00:00:04]} Qg5 {[%clk 00:00:41]} {[%emt 00:00:09]} 27.
Qg3 {[%clk 00:00:25]} {[%emt 00:00:02]} Rce7 {[%clk 00:00:39]} {[%emt
00:00:04]} 28. h4 {[%clk 00:00:26]} {[%emt 00:00:01]} Qe3+ {[%clk 00:00:40]}
{[%emt 00:00:02]} 29. Kh1 {[%clk 00:00:24]} {[%emt 00:01:00]} f4 {[%clk
00:01:38]} {[%emt 00:00:04]} 30. Qg2 {[%clk 00:00:25]} Qd3 {[%clk 00:01:34]}
{[%emt 00:00:08]} 31. h5 {[%clk 00:00:24]} {[%emt 00:00:02]} Re1 {[%clk
00:01:32]} {[%emt 00:00:04]} 32. Rxe1 {[%clk 00:00:20]} {[%emt 00:00:06]} Rxe1+
{[%clk 00:01:32]} 33. Kh2 {[%emt 00:00:05]} Qf1 {[%emt 00:00:07]} 34. Qxf1
{[%clk 00:00:18]} {[%emt 00:00:01]} Rxf1 {[%clk 00:01:30]} {[%emt 00:00:02]} 35.
Bd5 {[%emt 00:00:02]} Rf2+ {[%clk 00:01:27]} {[%emt 00:00:03]} 36. Kh3 {[%clk
00:00:19]} {[%emt 00:00:02]} Rxb2 {[%clk 00:01:27]} {[%emt 00:00:02]} 37. Bxc4
{[%clk 00:00:19]} gxh5 {[%clk 00:01:19]} {[%emt 00:00:12]} 38. gxh5 {[%clk
00:00:20]} Rc2 {[%clk 00:01:17]} {[%emt 00:00:04]} 39. Kg4 {[%clk 00:00:17]}
{[%emt 00:00:05]} Rxc3 {[%clk 00:01:17]} {[%emt 00:00:02]} 40. Bb3 {[%clk
00:00:19]} f3 {[%clk 00:01:17]} {[%emt 00:00:02]} 41. Kg3 {[%clk 00:00:19]} Kg7
{[%clk 00:01:16]} {[%emt 00:00:04]} 42. d5 {[%clk 00:00:20]} Rd3 {[%clk
00:01:12]} {[%emt 00:00:07]} 43. Bc4 {[%clk 00:00:19]} {[%emt 00:00:04]} Rc3
{[%clk 00:01:10]} {[%emt 00:00:04]} 44. Bb3 {[%clk 00:00:20]} b5 {[%clk
00:01:06]} {[%emt 00:00:06]} 45. Kf2 {[%clk 00:00:21]} {[%emt 00:00:02]} a5
{[%clk 00:01:07]} {[%emt 00:00:01]} 46. Bd1 {[%clk 00:00:22]} Kf6 {[%clk
00:01:03]} {[%emt 00:00:06]} 47. Bxf3 {[%clk 00:00:22]} Rc2+ {[%clk 00:01:04]}
{[%emt 00:00:03]} 48. Kg3 {[%clk 00:00:23]} Rxa2 {[%clk 00:01:04]} {[%emt
00:00:03]} 49. Kf4 {[%clk 00:00:24]} Ra4+ {[%clk 00:01:04]} {[%emt 00:00:02]}
50. Ke3 {[%clk 00:00:25]} Ke5 {[%clk 00:01:05]} {[%emt 00:00:03]} 51. Be2
{[%clk 00:00:27]} Ra3+ {[%clk 00:01:06]} {[%emt 00:00:02]} 52. Kf2 {[%clk
00:00:28]} b4 {[%clk 00:01:06]} {[%emt 00:00:03]} 53. Bc4 {[%clk 00:00:29]} b3
{[%clk 00:01:07]} {[%emt 00:00:02]} 54. Bd3 {[%clk 00:00:28]} {[%emt 00:00:02]}
b2 {[%emt 00:00:02]} 55. Bc2 Ra2 {[%clk 00:01:08]} 56. Bb1 {[%clk 00:00:31]}
Ra1 {[%clk 00:01:09]} {[%emt 00:00:03]} 0-1

[Event "Nové Hrady - Blesk"]
[Site "Nové Hrady, Czech Republic"]
[Date "2023.08.17"]
[Round "2.9"]
[White "Hostička, František"]
[Black "Steinbauer, Sebastian"]
[Result "1/2-1/2"]
[TimeControl "2x3+2s"]
[WhiteFideId "302295"]
[BlackFideId "399272"]
[WhiteElo "2074"]
[BlackElo "1660"]

1. e4 {[%clk 00:03:04]} {[%emt 00:00:59]} e5 {[%clk 00:03:03]} 2. Bb5 {[%clk
00:03:05]} c6 {[%emt 00:00:03]} 3. Ba4 Nf6 {[%clk 00:03:02]} {[%emt 00:00:03]}
4. d3 {[%clk 00:03:08]} Bb4+ {[%clk 00:03:01]} {[%emt 00:00:04]} 5. c3 Ba5 6.
Nf3 {[%clk 00:03:08]} {[%emt 00:00:02]} d6 {[%clk 00:02:59]} {[%emt 00:00:06]}
7. Nbd2 {[%clk 00:03:06]} {[%emt 00:00:04]} O-O {[%clk 00:02:58]} {[%emt
00:00:02]} 8. O-O {[%clk 00:03:07]} Bg4 {[%clk 00:02:59]} {[%emt 00:00:03]} 9.
h3 {[%clk 00:03:09]} Bh5 {[%clk 00:03:00]} 10. Re1 {[%clk 00:03:09]} Nbd7
{[%clk 00:02:59]} {[%emt 00:00:05]} 11. Nf1 {[%clk 00:03:08]} {[%emt 00:00:04]}
Bb6 {[%clk 00:02:57]} {[%emt 00:00:04]} 12. Ng3 {[%clk 00:03:04]} {[%emt
00:00:06]} Bg6 {[%clk 00:02:58]} {[%emt 00:00:01]} 13. Bg5 {[%clk 00:02:56]}
{[%emt 00:00:10]} Qc7 {[%clk 00:02:47]} {[%emt 00:00:13]} 14. Nh4 {[%clk
00:02:50]} {[%emt 00:00:08]} h6 {[%clk 00:02:41]} {[%emt 00:00:09]} 15. Bc1
{[%clk 00:02:47]} {[%emt 00:00:04]} Bh7 {[%clk 00:02:38]} {[%emt 00:00:04]} 16.
Nhf5 {[%clk 00:02:42]} {[%emt 00:00:07]} Kh8 {[%clk 00:02:26]} {[%emt
00:00:15]} 17. Qf3 {[%clk 00:02:39]} {[%emt 00:00:05]} d5 {[%clk 00:01:58]}
{[%emt 00:00:30]} 18. Bc2 {[%clk 00:02:26]} {[%emt 00:00:15]} Rfe8 {[%clk
00:01:37]} {[%emt 00:00:21]} 19. Bb3 {[%clk 00:02:03]} {[%emt 00:00:26]} dxe4
{[%clk 00:01:18]} {[%emt 00:00:21]} 20. dxe4 {[%clk 00:02:03]} {[%emt
00:00:02]} Rf8 {[%clk 00:01:04]} {[%emt 00:00:16]} 21. Bd2 {[%clk 00:01:54]}
{[%emt 00:00:12]} Nc5 {[%clk 00:01:04]} {[%emt 00:00:02]} 22. Bc2 {[%clk
00:01:38]} {[%emt 00:00:17]} Ne6 {[%clk 00:01:00]} {[%emt 00:00:06]} 23. Nxh6
{[%clk 00:01:32]} {[%emt 00:00:08]} Rad8 {[%clk 00:00:38]} {[%emt 00:00:26]} 24.
Rad1 {[%clk 00:01:33]} Nf4 {[%clk 00:00:33]} {[%emt 00:00:07]} 25. Ng4 {[%clk
00:01:04]} {[%emt 00:00:30]} Nxg4 {[%clk 00:00:20]} {[%emt 00:00:15]} 26. hxg4
{[%clk 00:00:50]} {[%emt 00:00:17]} f6 {[%clk 00:00:16]} {[%emt 00:00:06]} 27.
Ne2 {[%clk 00:00:41]} {[%emt 00:00:10]} Ne6 {[%clk 00:00:15]} {[%emt 00:00:04]}
28. Be3 {[%clk 00:00:33]} {[%emt 00:00:10]} g5 {[%clk 00:00:12]} {[%emt
00:00:05]} 29. g3 {[%clk 00:00:32]} {[%emt 00:00:03]} Kg7 {[%clk 00:00:13]}
{[%emt 00:00:01]} 30. Kg2 {[%clk 00:00:33]} Bg6 {[%clk 00:00:14]} {[%emt
00:00:02]} 31. Bb3 {[%clk 00:00:31]} {[%emt 00:00:04]} Nc5 {[%clk 00:00:12]}
{[%emt 00:00:03]} 32. Bc2 {[%clk 00:00:33]} Rxd1 {[%clk 00:00:11]} {[%emt
00:00:03]} 33. Rxd1 {[%clk 00:00:34]} Ne6 {[%clk 00:00:11]} {[%emt 00:00:03]}
34. Bb3 {[%clk 00:00:31]} {[%emt 00:00:05]} Nc5 {[%clk 00:00:11]} {[%emt
00:00:02]} 35. Bc2 {[%clk 00:00:32]} Ne6 {[%clk 00:00:13]} 36. b4 {[%clk
00:00:27]} {[%emt 00:00:08]} Rd8 {[%clk 00:00:14]} 37. Rh1 {[%clk 00:00:27]}
{[%emt 00:00:02]} Qe7 {[%clk 00:00:07]} {[%emt 00:00:09]} 38. Nc1 {[%clk
00:00:21]} {[%emt 00:00:08]} Bxe3 {[%clk 00:00:06]} {[%emt 00:00:03]} 39. Qxe3
{[%clk 00:00:21]} {[%emt 00:00:02]} b6 {[%clk 00:00:07]} 40. Nd3 {[%clk
00:00:20]} {[%emt 00:00:04]} c5 {[%clk 00:00:08]} 41. bxc5 {[%clk 00:00:19]}
{[%emt 00:00:02]} Nxc5 {[%clk 00:00:09]} 42. Nxc5 {[%clk 00:00:20]} {[%emt
00:00:03]} bxc5 {[%clk 00:00:11]} 43. Rb1 {[%clk 00:00:19]} {[%emt 00:00:03]}
Rd7 {[%clk 00:00:11]} {[%emt 00:00:02]} 44. Ba4 {[%clk 00:00:20]} {[%emt
00:00:02]} Rc7 {[%clk 00:00:11]} 45. Qe2 {[%clk 00:00:18]} {[%emt 00:00:04]}
Qd6 {[%clk 00:00:12]} 46. Rd1 {[%clk 00:00:18]} {[%emt 00:00:03]} Qb6 {[%clk
00:00:11]} {[%emt 00:00:02]} 47. Bb3 {[%clk 00:00:18]} {[%emt 00:00:02]} Qc6
{[%clk 00:00:06]} {[%emt 00:00:07]} 48. Bd5 {[%clk 00:00:17]} {[%emt 00:00:04]}
Qa4 {[%clk 00:00:07]} 49. Qb2 {[%clk 00:00:18]} {[%emt 00:00:02]} Bxe4+ {[%clk
00:00:08]} {[%emt 00:00:01]} 50. Bxe4 {[%clk 00:00:20]} Qxe4+ 51. f3 {[%emt
00:00:05]} Qc6 {[%clk 00:00:10]} 52. Qb8 {[%clk 00:00:20]} {[%emt 00:00:01]}
Rd7 {[%clk 00:00:07]} {[%emt 00:00:05]} 53. Rxd7+ {[%clk 00:00:18]} {[%emt
00:00:04]} Qxd7 {[%clk 00:00:09]} 54. Qb3 {[%clk 00:00:15]} {[%emt 00:00:05]}
Qd2+ {[%clk 00:00:10]} 55. Kh3 {[%clk 00:00:15]} {[%emt 00:00:03]} Qe1 {[%clk
00:00:09]} {[%emt 00:00:03]} 56. Kg2 {[%emt 00:00:02]} Qe2+ {[%emt 00:00:01]}
57. Kg1 {[%clk 00:00:14]} {[%emt 00:00:02]} Qe1+ 58. Kg2 {[%emt 00:00:02]} Qe2+
{[%clk 00:00:12]} 59. Kg1 {[%clk 00:00:16]} {[%emt 00:00:01]} Qe1+ {[%clk
00:00:15]} 60. Kg2 {[%clk 00:00:18]} Qe2+ {[%clk 00:00:16]} 61. Kg1 {[%clk
00:00:18]} Qxf3 {[%clk 00:00:16]} {[%emt 00:00:05]} 62. Kh2 {[%emt 00:00:05]}
Qf2+ 63. Kh3 {[%clk 00:00:15]} Qf1+ {[%clk 00:00:06]} {[%emt 00:00:14]} 1/2-1/2

[Event "Nové Hrady - Blesk"]
[Site "Nové Hrady, Czech Republic"]
[Date "2023.08.17"]
[Round "2.10"]
[White "Hejda, Ondřej"]
[Black "Cernik, Rudolf"]
[Result "1-0"]
[TimeControl "2x3+2s"]
[WhiteFideId "23713623"]
[BlackFideId "393096"]
[WhiteElo "1321"]
[BlackElo "1861"]

1. e4 {[%clk 00:03:02]} {[%emt 00:00:02]} d5 {[%clk 00:03:02]} {[%emt
00:00:02]} 2. exd5 {[%clk 00:03:02]} Qxd5 {[%clk 00:03:02]} {[%emt 00:00:03]} 3.
Nc3 {[%clk 00:03:02]} {[%emt 00:00:02]} Qe6+ {[%clk 00:03:01]} {[%emt
00:00:03]} 4. Be2 {[%clk 00:02:57]} {[%emt 00:00:07]} Nf6 {[%clk 00:03:01]}
{[%emt 00:00:02]} 5. Nf3 {[%clk 00:02:57]} {[%emt 00:00:02]} h5 {[%clk
00:03:01]} {[%emt 00:00:02]} 6. d3 {[%clk 00:02:49]} {[%emt 00:00:11]} h4
{[%clk 00:03:00]} {[%emt 00:00:02]} 7. h3 {[%clk 00:02:44]} {[%emt 00:00:08]}
Nc6 {[%clk 00:02:59]} {[%emt 00:00:03]} 8. Ng5 {[%clk 00:02:35]} {[%emt
00:00:10]} Qf5 {[%clk 00:02:57]} {[%emt 00:00:04]} 9. Nf3 {[%clk 00:02:20]}
{[%emt 00:00:17]} Be6 {[%clk 00:02:53]} {[%emt 00:00:06]} 10. Be3 {[%clk
00:02:15]} {[%emt 00:00:07]} O-O-O {[%clk 00:02:50]} {[%emt 00:00:05]} 11. Qd2
{[%clk 00:02:09]} {[%emt 00:00:08]} Kb8 {[%clk 00:02:50]} {[%emt 00:00:02]} 12.
O-O-O {[%clk 00:02:07]} {[%emt 00:00:04]} Ng4 {[%clk 00:02:41]} {[%emt
00:00:10]} 13. Kb1 {[%clk 00:02:00]} {[%emt 00:00:10]} Nxe3 {[%clk 00:02:40]}
{[%emt 00:00:03]} 14. Qxe3 {[%clk 00:01:59]} {[%emt 00:00:03]} g6 {[%clk
00:02:35]} {[%emt 00:00:07]} 15. d4 {[%clk 00:01:33]} {[%emt 00:00:28]} Bh6
{[%clk 00:02:34]} {[%emt 00:00:02]} 16. Qd3 {[%clk 00:01:20]} {[%emt 00:00:13]}
Qa5 {[%emt 00:00:19]} 17. Qb5 {[%emt 00:00:17]} a6 {[%clk 00:01:56]} {[%emt
00:00:07]} 18. Qxa5 {[%clk 00:01:15]} {[%emt 00:00:07]} Nxa5 {[%clk 00:01:56]}
19. Ne5 {[%clk 00:01:08]} {[%emt 00:00:10]} Bf8 {[%clk 00:01:49]} {[%emt
00:00:08]} 20. d5 {[%clk 00:01:02]} {[%emt 00:00:09]} Bf5 {[%clk 00:01:48]}
{[%emt 00:00:02]} 21. Nxf7 {[%clk 00:01:00]} {[%emt 00:00:06]} Bg7 {[%clk
00:01:43]} {[%emt 00:00:06]} 22. Nxh8 {[%clk 00:00:52]} {[%emt 00:00:09]} Rxh8
{[%clk 00:01:42]} {[%emt 00:00:02]} 23. Bd3 {[%clk 00:00:45]} {[%emt 00:00:11]}
c6 {[%clk 00:01:35]} {[%emt 00:00:08]} 24. Bxf5 {[%clk 00:00:45]} {[%emt
00:00:02]} gxf5 {[%clk 00:01:35]} {[%emt 00:00:02]} 25. dxc6 {[%clk 00:00:45]}
{[%emt 00:00:03]} bxc6 {[%clk 00:01:35]} 26. Rd7 {[%clk 00:00:40]} {[%emt
00:00:07]} Nb7 {[%clk 00:01:29]} {[%emt 00:00:08]} 27. Rxe7 {[%clk 00:00:40]}
{[%emt 00:00:03]} Bf8 {[%clk 00:01:26]} {[%emt 00:00:04]} 28. Rf7 {[%clk
00:00:38]} {[%emt 00:00:04]} Bb4 {[%clk 00:01:26]} {[%emt 00:00:03]} 29. a3
{[%clk 00:00:38]} {[%emt 00:00:02]} Ba5 {[%clk 00:01:26]} {[%emt 00:00:02]} 30.
Rxf5 {[%clk 00:00:38]} {[%emt 00:00:02]} Bb6 {[%clk 00:01:26]} {[%emt
00:00:02]} 31. Re1 {[%emt 00:00:07]} Ka7 {[%clk 00:01:22]} {[%emt 00:00:03]} 32.
f3 {[%clk 00:00:26]} {[%emt 00:00:11]} Rg8 {[%clk 00:01:22]} {[%emt 00:00:02]}
33. Re2 {[%clk 00:00:25]} {[%emt 00:00:04]} Nd6 {[%clk 00:01:16]} {[%emt
00:00:07]} 34. Rfe5 {[%clk 00:00:22]} {[%emt 00:00:06]} Nf7 {[%clk 00:01:10]}
{[%emt 00:00:08]} 35. Re7+ {[%clk 00:00:23]} Kb8 {[%emt 00:00:03]} 36. Rxf7
{[%emt 00:00:04]} Rc8 {[%clk 00:01:05]} {[%emt 00:00:03]} 37. Ree7 {[%clk
00:00:24]} {[%emt 00:00:03]} Rc7 {[%clk 00:01:00]} {[%emt 00:00:06]} 38. Rxc7
{[%clk 00:00:24]} {[%emt 00:00:02]} Bxc7 {[%clk 00:01:01]} 39. Rh7 {[%clk
00:00:21]} {[%emt 00:00:05]} Kb7 {[%clk 00:01:00]} {[%emt 00:00:04]} 40. Rxh4
{[%clk 00:00:20]} {[%emt 00:00:03]} Kb6 {[%clk 00:01:00]} {[%emt 00:00:02]} 41.
Rb4+ {[%clk 00:00:17]} {[%emt 00:00:06]} Ka7 {[%clk 00:01:01]} 42. Ne4 {[%clk
00:00:16]} {[%emt 00:00:03]} Bd6 {[%clk 00:00:59]} {[%emt 00:00:04]} 43. Nxd6
{[%emt 00:00:07]} a5 {[%clk 00:00:55]} {[%emt 00:00:02]} 44. Rb7+ {[%clk
00:00:15]} {[%emt 00:00:01]} Ka6 {[%clk 00:00:54]} {[%emt 00:00:03]} 45. Rf7
{[%clk 00:00:14]} {[%emt 00:00:04]} Kb6 {[%clk 00:00:54]} {[%emt 00:00:01]} 46.
h4 {[%clk 00:00:14]} {[%emt 00:00:03]} Kc5 {[%clk 00:00:55]} 47. Ne4+ {[%clk
00:00:15]} Kd5 {[%clk 00:00:56]} {[%emt 00:00:02]} 48. h5 {[%clk 00:00:16]} Kd4
{[%clk 00:00:56]} {[%emt 00:00:03]} 49. h6 {[%clk 00:00:15]} {[%emt 00:00:02]}
Ke3 {[%clk 00:00:57]} {[%emt 00:00:01]} 50. h7 {[%clk 00:00:16]} {[%emt
00:00:02]} Ke2 {[%clk 00:00:56]} {[%emt 00:00:03]} 51. Nf2 {[%clk 00:00:16]}
{[%emt 00:00:02]} Ke3 {[%clk 00:00:56]} {[%emt 00:00:01]} 52. h8=Q {[%clk
00:00:17]} {[%emt 00:00:02]} Ke2 {[%clk 00:00:56]} {[%emt 00:00:01]} 53. Qe5+
{[%clk 00:00:16]} {[%emt 00:00:02]} Kf1 {[%clk 00:00:57]} 54. Re7 {[%clk
00:00:13]} {[%emt 00:00:08]} Kxg2 {[%clk 00:00:56]} {[%emt 00:00:03]} 1-0

[Event "Nové Hrady - Blesk"]
[Site "Nové Hrady, Czech Republic"]
[Date "2023.08.17"]
[Round "3.1"]
[White "Richtrova, Eliska"]
[Black "Pulpan, Jakub"]
[Result "0-1"]
[TimeControl "2x3+2s"]
[WhiteFideId "300683"]
[BlackFideId "302759"]
[WhiteElo "2122"]
[BlackElo "2452"]

1. e4 {[%clk 00:03:02]} {[%emt 00:10:21]} c5 {[%clk 00:03:00]} {[%emt
00:00:09]} 2. Nc3 {[%clk 00:03:03]} {[%emt 00:00:02]} a6 {[%clk 00:03:01]} 3.
g3 {[%clk 00:03:04]} b5 {[%clk 00:03:03]} 4. Bg2 {[%clk 00:03:05]} Bb7 {[%clk
00:03:04]} 5. d3 {[%clk 00:03:04]} {[%emt 00:00:07]} Nf6 {[%clk 00:03:01]}
{[%emt 00:00:05]} 6. f4 {[%clk 00:02:56]} {[%emt 00:00:10]} e6 {[%clk
00:02:57]} {[%emt 00:00:07]} 7. Nf3 {[%clk 00:02:55]} {[%emt 00:00:02]} d5
{[%clk 00:02:57]} {[%emt 00:00:02]} 8. e5 {[%clk 00:02:56]} d4 {[%clk
00:02:58]} 9. exf6 {[%clk 00:02:40]} {[%emt 00:00:18]} dxc3 {[%clk 00:02:58]}
{[%emt 00:00:02]} 10. bxc3 {[%clk 00:02:35]} {[%emt 00:00:08]} Qxf6 {[%clk
00:02:59]} {[%emt 00:00:01]} 11. Bd2 {[%clk 00:02:30]} {[%emt 00:00:07]} Bd6
{[%clk 00:02:47]} {[%emt 00:00:14]} 12. O-O {[%clk 00:02:30]} {[%emt 00:00:02]}
Nd7 {[%clk 00:02:45]} {[%emt 00:00:03]} 13. a4 {[%clk 00:02:25]} {[%emt
00:00:08]} Qe7 {[%clk 00:02:33]} {[%emt 00:00:13]} 14. axb5 {[%clk 00:02:21]}
{[%emt 00:00:07]} axb5 {[%clk 00:02:34]} 15. Rxa8+ {[%clk 00:02:21]} {[%emt
00:00:02]} Bxa8 {[%clk 00:02:35]} 16. Qb1 {[%clk 00:02:20]} {[%emt 00:00:05]}
b4 {[%clk 00:02:09]} {[%emt 00:00:28]} 17. Qa1 {[%clk 00:02:09]} {[%emt
00:00:12]} O-O {[%clk 00:02:07]} {[%emt 00:00:05]} 18. Qa7 {[%clk 00:02:02]}
{[%emt 00:00:09]} Bd5 {[%clk 00:01:59]} {[%emt 00:00:09]} 19. Qa6 {[%clk
00:01:25]} {[%emt 00:00:40]} Ra8 {[%clk 00:01:47]} {[%emt 00:00:14]} 20. Qb5
{[%clk 00:01:26]} h6 {[%clk 00:01:42]} {[%emt 00:00:07]} 21. c4 {[%clk
00:01:25]} {[%emt 00:00:04]} Rb8 {[%clk 00:01:43]} 22. Qa5 {[%clk 00:01:24]}
{[%emt 00:00:04]} Bc6 {[%clk 00:01:38]} {[%emt 00:00:07]} 23. Re1 {[%clk
00:01:21]} {[%emt 00:00:06]} Ra8 {[%clk 00:01:36]} {[%emt 00:00:03]} 24. Qxa8+
{[%clk 00:01:04]} {[%emt 00:00:19]} Bxa8 {[%clk 00:01:37]} {[%emt 00:00:01]} 25.
Ra1 {[%clk 00:01:05]} Qd8 {[%clk 00:01:16]} {[%emt 00:00:23]} 26. Be3 {[%clk
00:01:05]} {[%emt 00:00:02]} Bc6 {[%clk 00:01:14]} {[%emt 00:00:05]} 27. Nd2
{[%clk 00:01:06]} Bxg2 {[%clk 00:01:14]} {[%emt 00:00:03]} 28. Kxg2 {[%clk
00:01:07]} {[%emt 00:00:02]} e5 {[%clk 00:01:03]} {[%emt 00:00:11]} 29. f5
{[%clk 00:01:04]} {[%emt 00:00:05]} Nf6 {[%clk 00:00:59]} {[%emt 00:00:07]} 30.
h3 {[%clk 00:01:04]} {[%emt 00:00:02]} e4 {[%clk 00:00:55]} {[%emt 00:00:06]}
31. dxe4 {[%clk 00:00:45]} {[%emt 00:00:21]} Qe8 {[%clk 00:00:50]} {[%emt
00:00:06]} 32. Kf3 {[%clk 00:00:45]} {[%emt 00:00:03]} Qe5 {[%clk 00:00:50]}
{[%emt 00:00:02]} 33. Rg1 {[%clk 00:00:44]} {[%emt 00:00:03]} Qc3 {[%clk
00:00:46]} {[%emt 00:00:06]} 34. Rc1 {[%clk 00:00:17]} {[%emt 00:00:29]} Bxg3
{[%clk 00:00:39]} {[%emt 00:00:09]} 35. Nb1 {[%clk 00:00:09]} {[%emt 00:00:10]}
Qe5 {[%clk 00:00:40]} 36. Rg1 {[%clk 00:00:05]} {[%emt 00:00:06]} Qxe4+ {[%clk
00:00:41]} {[%emt 00:00:02]} 37. Ke2 {[%clk 00:00:06]} Bf4 {[%emt 00:00:03]}
0-1

[Event "Nové Hrady - Blesk"]
[Site "Nové Hrady, Czech Republic"]
[Date "2023.08.17"]
[Round "3.2"]
[White "Zeman, Matyas"]
[Black "Šimůnek, Jakub Šimon"]
[Result "1-0"]
[TimeControl "2x3+2s"]
[WhiteFideId "364398"]
[BlackFideId "23709464"]
[WhiteElo "2254"]
[BlackElo "1921"]

1. Nf3 {[%clk 00:03:02]} {[%emt 00:00:02]} d5 {[%clk 00:03:02]} {[%emt
00:00:02]} 2. b3 {[%clk 00:03:03]} {[%emt 00:00:02]} Nf6 {[%clk 00:02:59]}
{[%emt 00:00:05]} 3. Bb2 {[%clk 00:03:04]} c6 {[%clk 00:02:57]} {[%emt
00:00:04]} 4. g3 {[%clk 00:03:01]} {[%emt 00:00:04]} Bf5 {[%clk 00:02:57]}
{[%emt 00:00:02]} 5. Bg2 {[%clk 00:03:02]} e6 {[%clk 00:02:57]} {[%emt
00:00:04]} 6. d3 {[%clk 00:02:59]} {[%emt 00:00:04]} h6 {[%clk 00:02:58]} 7.
O-O {[%clk 00:02:59]} {[%emt 00:00:02]} Be7 {[%clk 00:02:59]} 8. Nbd2 {[%clk
00:03:00]} {[%emt 00:00:03]} O-O {[%clk 00:02:58]} {[%emt 00:00:03]} 9. c4
{[%clk 00:03:00]} Nbd7 {[%clk 00:02:56]} {[%emt 00:00:05]} 10. Rc1 {[%clk
00:03:01]} Rc8 {[%clk 00:02:54]} {[%emt 00:00:05]} 11. Rc2 {[%clk 00:02:59]}
{[%emt 00:00:05]} a5 {[%clk 00:02:34]} {[%emt 00:00:23]} 12. a3 {[%clk
00:02:54]} {[%emt 00:00:05]} Qb6 {[%clk 00:02:30]} {[%emt 00:00:07]} 13. Qa1
{[%clk 00:02:50]} {[%emt 00:00:06]} Nc5 {[%clk 00:02:16]} {[%emt 00:00:16]} 14.
Bd4 {[%clk 00:02:42]} {[%emt 00:00:10]} Qa6 {[%clk 00:01:59]} {[%emt 00:00:19]}
15. cxd5 {[%clk 00:02:05]} {[%emt 00:00:38]} cxd5 {[%clk 00:01:58]} {[%emt
00:00:04]} 16. Rfc1 {[%clk 00:02:05]} b6 {[%clk 00:01:56]} {[%emt 00:00:04]} 17.
b4 {[%clk 00:02:01]} {[%emt 00:00:06]} Ncd7 {[%clk 00:01:47]} {[%emt 00:00:12]}
18. b5 {[%clk 00:01:45]} {[%emt 00:00:18]} Qb7 {[%clk 00:01:40]} {[%emt
00:00:08]} 19. Ne5 {[%clk 00:01:32]} {[%emt 00:00:15]} Nxe5 {[%clk 00:00:54]}
{[%emt 00:00:48]} 20. Bxe5 {[%clk 00:01:33]} {[%emt 00:00:02]} Rxc2 {[%clk
00:00:55]} 21. Rxc2 {[%clk 00:01:33]} {[%emt 00:00:02]} Rc8 {[%clk 00:00:56]}
22. Rxc8+ {[%clk 00:00:46]} {[%emt 00:00:50]} Qxc8 {[%clk 00:00:58]} 23. Nf3
{[%clk 00:00:47]} {[%emt 00:00:02]} Qc5 {[%clk 00:00:51]} {[%emt 00:00:09]} 24.
Nd4 {[%clk 00:00:47]} {[%emt 00:00:02]} Bg6 {[%clk 00:00:37]} {[%emt 00:00:16]}
25. a4 {[%clk 00:00:42]} {[%emt 00:00:07]} Nd7 {[%clk 00:00:30]} {[%emt
00:00:09]} 26. Nc6 {[%clk 00:00:43]} {[%emt 00:00:01]} Nxe5 {[%clk 00:00:29]}
{[%emt 00:00:03]} 27. Nxe7+ {[%clk 00:00:39]} {[%emt 00:00:06]} Qxe7 {[%clk
00:00:30]} 28. Qxe5 {[%clk 00:00:39]} Qc5 {[%clk 00:00:27]} {[%emt 00:00:07]}
29. h4 {[%clk 00:00:38]} {[%emt 00:00:03]} Kf8 {[%clk 00:00:15]} {[%emt
00:00:14]} 30. h5 {[%clk 00:00:32]} {[%emt 00:00:08]} Bf5 {[%clk 00:00:13]}
{[%emt 00:00:04]} 31. e4 {[%clk 00:00:29]} {[%emt 00:00:04]} dxe4 32. dxe4 Bh7
{[%clk 00:00:11]} {[%emt 00:00:04]} 33. Qb8+ {[%clk 00:00:32]} Ke7 {[%clk
00:00:12]} {[%emt 00:00:03]} 34. Qh8 {[%clk 00:00:32]} Qc1+ {[%clk 00:00:07]}
{[%emt 00:00:07]} 35. Kh2 {[%clk 00:00:33]} Qg5 {[%clk 00:00:08]} 36. Qxh7
{[%clk 00:00:30]} {[%emt 00:00:07]} Qxh5+ {[%clk 00:00:09]} 37. Kg1 {[%clk
00:00:31]} Qd1+ {[%clk 00:00:10]} {[%emt 00:00:04]} 38. Bf1 {[%clk 00:00:32]}
Qxa4 {[%clk 00:00:12]} 39. Qxh6 {[%clk 00:00:30]} gxh6 {[%clk 00:00:13]} 1-0